bitfinex-derivatives/quotes_BTCF0:USTF0_20240917
["timestamp","ask_amount","ask_price","bid_price","bid_amount"]
[1726603929759,0.006,59893.0,59888.0,0.08315123]
[1726603929948,0.006,59893.0,59886.0,0.3608]
[1726603929949,0.015,59893.0,59892.0,0.444262]
[1726603930155,0.083446,59904.0,59895.0,0.083458]
[1726603930360,0.083448,59903.0,59894.0,0.08294385]
[1726603930559,0.00476553,59904.0,59896.0,0.08294385]
[1726603930755,0.65288001,59905.0,59898.0,0.3608]
[1726603931060,0.6508,59905.0,59898.0,0.3608]
[1726603931257,0.65544487,59905.0,59898.0,0.3608]
[1726603931565,0.3608,59916.0,59904.0,0.3608]
[1726603931859,0.3608,59916.0,59905.0,0.08294385]
[1726603932074,0.3608,59916.0,59908.0,0.08344]
[1726603932257,0.29,59913.0,59909.0,0.3715]
[1726603933269,0.08343,59915.0,59909.0,0.3715]
[1726603933559,0.29,59913.0,59909.0,0.3715]
[1726603933869,0.298,59913.0,59909.0,0.3715]
[1726603934562,0.298,59913.0,59909.0,0.3725]
[1726603935262,0.29,59913.0,59909.0,0.3735]
[1726603935468,0.083437,59910.0,59909.0,0.002]
[1726603935964,0.083437,59910.0,59909.0,0.001]
[1726603936170,0.083437,59910.0,59909.0,0.002]
[1726603936352,0.306,59913.0,59909.0,0.002]
[1726603936557,0.011,59910.0,59909.0,0.002]
[1726603936758,0.02,59910.0,59909.0,0.002]
[1726603937168,0.022,59910.0,59909.0,0.002]
[1726603937660,0.022,59910.0,59909.0,0.085439]
[1726603937867,0.312,59910.0,59909.0,0.002]
[1726603938258,0.303,59910.0,59909.0,0.002]
[1726603939180,0.315,59910.0,59909.0,0.002]
[1726603939668,0.025,59910.0,59909.0,0.002]
[1726603940066,0.315,59910.0,59909.0,0.002]
[1726603940460,0.108437,59910.0,59909.0,0.002]
[1726603940664,0.315,59910.0,59909.0,0.002]
[1726603942463,0.025,59910.0,59909.0,0.085439]
[1726603944966,0.025,59910.0,59909.0,0.002]
[1726603945166,0.108437,59910.0,59909.0,0.002]
[1726603947469,0.025,59910.0,59909.0,0.002]
[1726603948680,0.025,59910.0,59909.0,0.085439]
[1726603949867,0.025,59910.0,59909.0,0.002]
[1726603949868,0.31138,59910.0,59909.0,0.002]
[1726603950175,0.02138,59910.0,59909.0,0.085439]
[1726603950976,0.02138,59910.0,59909.0,1.186199]
[1726603951169,0.29,59921.0,59909.0,1.10276]
[1726603951365,0.29,59926.0,59914.0,0.3608]
[1726603952377,0.00466534,59924.0,59914.0,0.3608]
[1726603952576,0.6508,59930.0,59919.0,0.3608]
[1726603952782,0.012,59921.0,59920.0,0.835923]
[1726603953173,0.019,59921.0,59920.0,0.835923]
[1726603953369,0.012,59921.0,59920.0,0.835923]
[1726603954072,0.004,59921.0,59920.0,0.836923]
[1726603954578,0.004,59921.0,59920.0,1.937603]
[1726603955084,0.004,59921.0,59920.0,1.938603]
[1726603955676,0.29,59936.0,59920.0,1.938603]
[1726603955985,0.083395,59941.0,59926.0,0.3608]
[1726603955986,0.29,59941.0,59926.0,0.3608]
[1726603956278,0.083396,59940.0,59931.0,0.3608]
[1726603956487,0.083396,59940.0,59935.0,0.083402]
[1726603956980,0.083396,59940.0,59931.0,0.3608]
[1726603957483,0.29,59937.0,59934.0,0.083403]
[1726603957978,0.29,59937.0,59935.0,0.083402]
[1726603958882,0.298,59937.0,59935.0,0.083402]
[1726603959269,0.298,59937.0,59934.0,0.001]
[1726603960187,0.298,59937.0,59935.0,0.001]
[1726603960373,0.299,59937.0,59935.0,0.002]
[1726603960679,0.299,59937.0,59935.0,0.001]
[1726603961073,0.299,59937.0,59934.0,0.001]
[1726603961074,0.29,59937.0,59934.0,0.001]
[1726603961276,0.298,59937.0,59934.0,0.002]
[1726603961872,0.298,59937.0,59935.0,0.001]
[1726603962278,0.298,59937.0,59935.0,0.002]
[1726603962785,0.298,59937.0,59935.0,0.001]
[1726603963385,0.298,59937.0,59935.0,0.002]
[1726603963880,0.29,59937.0,59935.0,0.001]
[1726603964079,0.299,59937.0,59935.0,0.001]
[1726603964384,0.009,59937.0,59935.0,0.001]
[1726603964774,0.009,59937.0,59935.0,0.002]
[1726603965177,0.009,59937.0,59935.0,0.085402]
[1726603967183,0.009,59937.0,59935.0,0.002]
[1726603967585,0.299,59937.0,59935.0,0.002]
[1726603969487,0.009,59937.0,59936.0,0.083401]
[1726603970583,0.0046513,59941.0,59936.0,0.083401]
[1726603970783,0.009,59937.0,59936.0,0.084401]
[1726603971586,0.29,59942.0,59936.0,0.083401]
[1726603971782,0.009,59941.0,59936.0,0.085401]
[1726603971987,0.19,59940.0,59936.0,0.085401]
[1726603973281,0.19,59940.0,59936.0,0.084401]
[1726603973590,0.009,59937.0,59936.0,0.085401]
[1726603974293,0.00538,59937.0,59936.0,0.085401]
[1726603975787,0.199,59940.0,59936.0,0.085401]
[1726603976594,0.009,59940.0,59936.0,0.002]
[1726603977291,0.00539245,59942.0,59936.0,0.002]
[1726603977594,0.3608,59943.0,59936.0,0.002]
[1726603977986,0.3608,59943.0,59942.0,0.083393]
[1726603978491,0.08337,59959.0,59942.0,0.083393]
[1726603978492,0.3628,59950.0,59949.0,0.083383]
[1726603978690,0.0051649,59951.0,59949.0,0.3608]
[1726603978990,0.19,59960.0,59949.0,0.3608]
[1726603979588,0.19,59956.0,59955.0,0.3608]
[1726603979898,0.19,59956.0,59955.0,0.444175]
[1726603980196,0.19,59956.0,59955.0,0.3608]
[1726603980397,0.19,59956.0,59949.0,0.3608]
[1726603980582,0.19,59950.0,59949.0,0.3608]
[1726603980785,0.19,59950.0,59949.0,0.3618]
[1726603981397,1.373821,59950.0,59943.0,0.00092]
[1726603981595,1.65028,59944.0,59933.0,0.3608]
[1726603981798,0.083404,59934.0,59933.0,0.3608]
[1726603982188,0.008144,59935.0,59933.0,0.3608]
[1726603982389,0.19,59937.0,59933.0,0.3608]
[1726603982697,0.189,59937.0,59933.0,0.3608]
[1726603982890,0.19739853,59937.0,59933.0,0.3608]
[1726603983086,0.19739853,59937.0,59933.0,0.001]
[1726603983298,0.444204,59934.0,59933.0,0.001]
[1726603984098,0.083404,59934.0,59933.0,0.001]
[1726603984296,0.083404,59934.0,59933.0,0.002]
[1726603984297,0.091404,59934.0,59933.0,0.002]
[1726603984491,1.166604,59934.0,59933.0,0.002]
[1726603985806,1.166604,59934.0,59933.0,0.001]
[1726603986002,1.166604,59934.0,59933.0,0.002]
[1726603986507,0.008,59934.0,59933.0,0.002]
[1726603986993,0.198,59934.0,59933.0,0.002]
[1726603987302,0.198,59934.0,59933.0,0.001]
[1726603987603,0.198,59934.0,59933.0,0.002]
[1726603988100,0.19,59934.0,59930.0,0.083409]
[1726603988302,0.199,59934.0,59933.0,0.002]
[1726603988897,0.19,59934.0,59933.0,0.001]
[1726603989095,0.197,59934.0,59933.0,0.002]
[1726603990604,0.19,59934.0,59933.0,0.001]
[1726603990804,0.198,59934.0,59933.0,0.002]
[1726603991109,0.198,59934.0,59933.0,0.084405]
[1726603991610,0.198,59934.0,59933.0,0.085405]
[1726603992996,0.008,59934.0,59933.0,0.275405]
[1726603993195,0.5508,59952.0,59934.0,0.083402]
[1726603993402,0.19,59952.0,59945.0,0.3608]
[1726603993915,0.19,59952.0,59946.0,0.3739]
[1726603994210,0.19,59956.0,59948.0,0.083384]
[1726603994403,0.19,59949.0,59946.0,0.3739]
[1726603994606,0.19,59949.0,59946.0,0.457287]
[1726603994998,0.19,59949.0,59945.0,0.3618]
[1726603995205,0.007,59952.0,59948.0,0.083384]
[1726603995412,0.007,59952.0,59949.0,0.083382]
[1726603996707,0.007,59952.0,59946.0,0.3692]
[1726603997103,0.19,59953.0,59946.0,0.3692]
[1726603997300,0.19,59953.0,59948.0,0.001]
[1726603997909,0.19,59953.0,59946.0,0.3682]
[1726603997910,0.19,59953.0,59950.0,0.08338]
[1726603998112,0.19,59953.0,59951.0,0.08338]
[1726603998315,0.3660687,59957.0,59952.0,0.083378]
[1726603998512,0.3644787,59957.0,59952.0,0.083378]
[1726603999228,0.3644787,59957.0,59950.0,0.001]
[1726603999807,0.3644787,59957.0,59954.0,0.083376]
[1726604000408,0.3644787,59957.0,59950.0,0.001]
[1726604000615,0.19,59951.0,59949.0,0.3709]
[1726604000811,0.19,59951.0,59950.0,0.001]
[1726604001516,0.19,59955.0,59950.0,0.08438]
[1726604002918,0.19,59955.0,59950.0,0.08338]
[1726604003120,0.19,59955.0,59950.0,0.08438]
[1726604004020,0.19,59955.0,59950.0,0.08538]
[1726604004422,0.19,59955.0,59950.0,0.08438]
[1726604004611,0.19,59955.0,59950.0,0.08538]
[1726604005306,0.0052687,59957.0,59950.0,0.002]
[1726604005517,0.19,59959.0,59955.0,0.083373]
[1726604006921,0.00539964,59959.0,59958.0,0.08337]
[1726604007107,0.273353,59971.0,59961.0,0.083366]
[1726604007620,0.19,59971.0,59961.0,0.083366]
[1726604008013,0.083357,59968.0,59956.0,0.19]
[1726604008410,0.083357,59968.0,59961.0,0.001]
[1726604008610,0.083357,59968.0,59961.0,0.084365]
[1726604009012,0.083357,59968.0,59962.0,0.3829]
[1726604009209,0.00534039,59964.0,59963.0,0.083363]
[1726604009415,0.19,59972.0,59963.0,0.811263]
[1726604009615,0.083354,59970.0,59963.0,0.811263]
[1726604010016,0.083354,59970.0,59964.0,0.083361]
[1726604010216,0.19541604,59972.0,59963.0,0.7279]
[1726604010408,0.00541604,59972.0,59968.0,0.083356]
[1726604010606,0.19,59976.0,59969.0,0.083355]
[1726604010807,0.3608,59977.0,59965.0,0.19]
[1726604011215,0.3608,59977.0,59968.0,0.3608]
[1726604011517,0.36608655,59977.0,59971.0,0.083352]
[1726604012124,0.36608655,59977.0,59968.0,0.3608]
[1726604012125,0.083352,59971.0,59968.0,0.3608]
[1726604012325,0.19,59972.0,59968.0,0.3608]
[1726604012517,0.19,59972.0,59969.0,0.001]
[1726604012720,0.083354,59970.0,59969.0,0.001]
[1726604013218,0.083359,59966.0,59965.0,0.001]
[1726604013413,0.5508,59966.0,59957.0,0.3608]
[1726604013616,0.19,59958.0,59957.0,0.3608]
[1726604013924,0.27337,59958.0,59957.0,0.3608]
[1726604014221,0.27237,59958.0,59957.0,0.3608]
[1726604014415,0.189,59958.0,59957.0,0.3608]
[1726604014626,0.3608,59966.0,59961.0,0.083365]
[1726604015424,0.36613151,59966.0,59961.0,0.083365]
[1726604015616,0.36613151,59966.0,59958.0,0.3456]
[1726604015810,0.36613151,59966.0,59963.0,0.083363]
[1726604017111,0.36913151,59966.0,59963.0,0.084363]
[1726604017520,0.36913151,59966.0,59963.0,0.085363]
[1726604017827,0.36913151,59966.0,59963.0,0.002]
[1726604018014,0.0084023,59965.0,59963.0,0.002]
[1726604018621,0.25141387,59964.0,59941.0,0.3271]
[1726604018821,0.19,59948.0,59947.0,0.444185]
[1726604019124,0.189,59953.0,59947.0,0.444185]
[1726604019619,0.19,59949.0,59947.0,0.3608]
[1726604020014,0.19,59948.0,59947.0,0.3638]
[1726604020516,0.19,59952.0,59947.0,0.3668]
[1726604020817,0.19,59952.0,59951.0,0.08338]
[1726604021124,0.3608,59960.0,59954.0,0.083376]
[1726604021125,0.19525776,59960.0,59954.0,0.083376]
[1726604021318,0.00525776,59960.0,59953.0,0.3608]
[1726604021520,0.19,59964.0,59953.0,0.3608]
[1726604021718,0.19,59964.0,59955.0,0.083373]
[1726604021918,0.19,59964.0,59953.0,0.3608]
[1726604021919,0.19,59964.0,59956.0,0.367]
[1726604022120,0.19538747,59964.0,59956.0,0.367]
[1726604022523,0.004,59960.0,59956.0,0.367]
[1726604023226,0.20038747,59964.0,59956.0,0.368]
[1726604023626,0.20038747,59964.0,59957.0,0.3366]
[1726604024024,0.20038747,59964.0,59959.0,0.083369]
[1726604027433,0.005,59964.0,59963.0,0.084363]
[1726604027823,0.005,59964.0,59963.0,0.085363]
[1726604028930,0.3608,59974.0,59963.0,1.10232]
[1726604029134,0.3608,59974.0,59969.0,0.083355]
[1726604029634,0.3608,59974.0,59970.0,0.083353]
[1726604030126,0.55997768,59974.0,59970.0,0.083353]
[1726604030529,0.002,59997.0,59972.0,0.5508]
[1726604030739,0.444923,59992.0,59983.0,0.3608]
[1726604031041,0.083326,59990.0,59983.0,0.3608]
[1726604031229,0.5536,59992.0,59983.0,0.3608]
[1726604031425,0.5516,59992.0,59984.0,0.083334]
[1726604032019,0.6516,59992.0,59984.0,0.083334]
[1726604032836,0.6516,59992.0,59984.0,0.084334]
[1726604033225,0.29,59987.0,59984.0,0.001]
[1726604034229,0.29,59987.0,59984.0,0.002]
[1726604035037,0.36697418,59992.0,59984.0,0.002]
[1726604035038,0.00537418,59992.0,59991.0,0.083324]
[1726604035223,0.3608,60005.0,59993.0,0.083321]
[1726604035224,0.00832997,60003.0,59993.0,0.083321]
[1726604035429,0.36606163,59999.0,59993.0,0.083321]
[1726604036036,0.36606163,59999.0,59994.0,0.08332]
[1726604036748,0.36606163,59999.0,59991.0,0.3618]
[1726604036749,0.36606163,59999.0,59996.0,0.083317]
[1726604037931,0.36606163,59999.0,59996.0,0.084317]
[1726604038730,0.00526163,59999.0,59998.0,0.083315]
[1726604038936,0.3608,60005.0,59998.0,0.3608]
[1726604039127,0.3563,60011.0,60005.0,0.083304]
[1726604039436,0.3563,60011.0,60006.0,0.083303]
[1726604039642,0.3563,60011.0,60004.0,0.3608]
[1726604039643,0.3614802,60011.0,60004.0,0.3608]
[1726604039836,0.0051802,60011.0,60004.0,0.444106]
[1726604040140,0.3608,60015.0,60009.0,0.083299]
[1726604040732,0.36608806,60015.0,60006.0,0.084304]
[1726604041137,0.36608806,60015.0,60004.0,0.3608]
[1726604041337,0.36608806,60015.0,60009.0,0.001]
[1726604041637,0.24874816,60014.0,60009.0,0.001]
[1726604042034,0.3502,60013.0,60009.0,0.001]
[1726604042237,0.373298,60010.0,60009.0,0.001]
[1726604042640,1.234018,60010.0,60009.0,0.001]
[1726604042937,1.234018,60010.0,60006.0,0.001]
[1726604042938,1.15072,60010.0,60006.0,0.001]
[1726604043238,0.083302,60007.0,60006.0,0.001]
[1726604043635,1.183262,60007.0,60006.0,0.001]
[1726604044259,0.33638001,60010.0,59992.0,0.3608]
[1726604044537,0.29,60027.0,60021.0,0.49996]
[1726604044737,0.29,60027.0,60009.0,0.3608]
[1726604044738,0.3644,60026.0,60022.0,0.7216]
[1726604045035,0.7123,60026.0,60022.0,0.7216]
[1726604045632,0.795576,60026.0,60022.0,0.7216]
[1726604046136,0.7123,60026.0,60022.0,0.7216]
[1726604046333,0.7123,60026.0,60022.0,0.7226]
[1726604047339,0.7123,60026.0,60022.0,0.7236]
[1726604047541,0.7123,60026.0,60025.0,0.49996]
[1726604048037,0.7123,60026.0,60025.0,1.09460136]
[1726604048736,0.71768244,60026.0,60025.0,1.09560136]
[1726604049253,0.71768244,60026.0,60025.0,0.50096]
[1726604049630,0.71768244,60026.0,60025.0,0.50196]
[1726604058043,0.36978244,60026.0,60025.0,0.50196]
[1726604064542,0.45305844,60026.0,60025.0,0.002]
[1726604064850,0.083287,60018.0,60017.0,0.3608]
[1726604065158,0.80866268,60018.0,59996.0,0.083317]
[1726604065357,0.3608,60010.0,60007.0,0.00084]
[1726604065546,0.3547,60009.0,60007.0,0.00084]
[1726604065749,0.3547,60009.0,59996.0,0.083317]
[1726604066054,0.083309,60003.0,60001.0,0.49996]
[1726604066644,0.272309,60003.0,60001.0,0.49996]
[1726604066953,0.271309,60003.0,60001.0,0.49996]
[1726604067641,0.19,60003.0,60001.0,0.49996]
[1726604068155,0.19,60003.0,60001.0,0.50096]
[1726604068351,0.204,60003.0,60001.0,0.50196]
[1726604069143,0.014,60003.0,60001.0,0.50196]
[1726604069540,0.025,60003.0,60001.0,0.50196]
[1726604070056,0.025,60003.0,60002.0,0.583269]
[1726604070356,0.025,60003.0,60002.0,0.49996]
[1726604070549,0.025,60003.0,60002.0,1.09460136]
[1726604071155,0.025,60003.0,60002.0,1.09560136]
[1726604075057,0.025,60003.0,60002.0,0.50096]
[1726604078058,0.025,60003.0,60002.0,1.17891036]
[1726604080459,0.025,60003.0,60002.0,1.09560136]
[1726604080665,0.025,60003.0,60002.0,1.17891036]
[1726604081362,0.025,60003.0,60002.0,1.36891036]
[1726604082649,0.025,60003.0,60002.0,1.37408626]
[1726604085455,0.025,60003.0,60002.0,1.45739526]
[1726604085960,0.00249997,60013.0,60012.0,0.083295]
[1726604086258,0.00249997,60013.0,60012.0,0.583255]
[1726604086447,0.00249997,60013.0,60012.0,1.17789636]
[1726604087053,0.01649997,60013.0,60012.0,1.17889636]
[1726604087560,0.02749997,60013.0,60012.0,1.17989636]
[1726604088361,0.03171513,60013.0,60012.0,1.17989636]
[1726604089451,0.03171513,60013.0,60012.0,1.09660136]
[1726604089658,0.19830313,60013.0,60012.0,0.002]
[1726604089960,0.38830313,60013.0,60012.0,0.002]
[1726604090153,0.30500913,60013.0,60012.0,0.002]
[1726604091259,0.22171513,60013.0,60012.0,0.002]
[1726604091560,0.03171513,60013.0,60012.0,0.002]
[1726604093357,0.03171513,60013.0,60012.0,1.09660136]
[1726604094161,0.03171513,60013.0,60012.0,1.17989636]
[1726604097869,0.03171513,60013.0,60012.0,1.54069636]
[1726604100249,0.03171513,60013.0,60012.0,1.45740136]
[1726604102658,0.02921516,60013.0,60012.0,1.54069636]
[1726604109863,0.025,60013.0,60012.0,1.54069636]
[1726604110254,0.2052676,60414.0,60012.0,2.33069636]
[1726604110255,0.3608,60036.0,60012.0,2.33069636]
[1726604110457,0.00429186,60026.0,60024.0,1.134039]
[1726604110652,0.7376,60040.0,60031.0,0.49996]
[1726604110854,1.1076,60040.0,60035.0,0.083263]
[1726604111457,1.1076,60040.0,60037.0,0.49996]
[1726604111649,1.1076,60040.0,60038.0,0.49996]
[1726604112577,0.273258,60039.0,60038.0,0.49996]
[1726604112864,0.273258,60039.0,60035.0,0.001]
[1726604112865,0.083262,60036.0,60035.0,0.001]
[1726604113754,0.083262,60036.0,60031.0,0.00249837]
[1726604114163,0.083262,60036.0,60035.0,0.001]
[1726604115161,1.1076,60040.0,60035.0,0.50096]
[1726604115358,1.1076,60040.0,60035.0,0.50196]
[1726604115859,1.1076,60040.0,60035.0,0.50096]
[1726604116570,1.1076,60040.0,60035.0,0.50196]
[1726604117755,0.19,60038.0,60035.0,0.50196]
[1726604118068,0.27326,60038.0,60035.0,0.50196]
[1726604118266,0.19,60038.0,60035.0,0.50196]
[1726604118965,0.19,60038.0,60035.0,0.50096]
[1726604119166,0.19,60038.0,60035.0,0.50196]
[1726604122163,1.1092,60040.0,60037.0,0.49996]
[1726604122469,1.1076,60040.0,60039.0,0.49996]
[1726604123867,1.1076,60040.0,60039.0,0.50096]
[1726604124067,0.37,60040.0,60039.0,0.50096]
[1726604124274,0.0042612,60041.0,60040.0,0.083256]
[1726604124472,1.0762,60050.0,60040.0,0.49996]
[1726604124672,1.0762,60050.0,60049.0,0.49996]
[1726604124864,1.2662,60050.0,60049.0,0.49996]
[1726604125057,1.51733642,60050.0,60049.0,0.49996]
[1726604125261,1.52163936,60050.0,60049.0,0.49996]
[1726604125783,1.33163936,60050.0,60049.0,0.49996]
[1726604126163,1.08050294,60050.0,60049.0,0.49996]
[1726604126976,1.08050294,60050.0,60049.0,0.001]
[1726604127674,1.08050294,60050.0,60049.0,0.002]
[1726604131085,0.37460294,60050.0,60049.0,0.002]
[1726604131879,0.37460294,60050.0,60049.0,0.50196]
[1726604133077,0.37460294,60050.0,60049.0,0.585204]
[1726604133481,0.00430294,60050.0,60049.0,1.17984536]
[1726604133682,0.3538,60055.0,60049.0,1.17984536]
[1726604133877,0.3538,60055.0,60051.0,0.49996]
[1726604134077,0.0024986,60056.0,60054.0,0.49996]
[1726604134299,0.0024986,60056.0,60055.0,0.49996]
[1726604134489,0.00681409,60056.0,60055.0,1.09460136]
[1726604134678,0.3608,60068.0,60061.0,0.083227]
[1726604134881,0.3608,60068.0,60055.0,1.09460136]
[1726604134882,0.0016,60064.0,60063.0,0.49996]
[1726604135078,0.0016,60064.0,60060.0,0.3608]
[1726604135283,0.00440872,60068.0,60063.0,0.49996]
[1726604135587,0.00249765,60069.0,60065.0,0.49996]
[1726604135784,0.00249765,60069.0,60068.0,0.49996]
[1726604136178,0.00249765,60069.0,60068.0,1.09460136]
[1726604136383,0.00677905,60069.0,60068.0,1.09460136]
[1726604136584,0.00249765,60069.0,60068.0,1.09460136]
[1726604137088,0.00249765,60069.0,60068.0,1.09660136]
[1726604140988,0.08571365,60069.0,60068.0,1.09660136]
[1726604141189,0.00249765,60069.0,60068.0,1.09660136]
[1726604142385,0.08571365,60069.0,60068.0,1.09660136]
[1726604142584,0.083216,60069.0,60068.0,1.09660136]
[1726604143500,0.19,60072.0,60068.0,1.09660136]
[1726604143685,0.273212,60072.0,60071.0,0.49996]
[1726604144998,0.19,60072.0,60071.0,0.49996]
[1726604145194,0.00439534,60073.0,60071.0,0.49996]
[1726604145391,0.635607,60076.0,60072.0,0.49996]
[1726604145695,0.634007,60076.0,60074.0,0.49996]
[1726604146986,0.63828072,60076.0,60074.0,0.49996]
[1726604147189,0.63828072,60076.0,60074.0,0.50096]
[1726604147497,0.63828072,60076.0,60074.0,0.50196]
[1726604147899,0.36507372,60076.0,60074.0,0.50196]
[1726604149403,0.19,60075.0,60074.0,0.50196]
[1726604152797,0.273208,60075.0,60074.0,0.50196]
[1726604155096,0.273208,60075.0,60074.0,0.50096]
[1726604155298,0.273208,60075.0,60074.0,0.50196]
[1726604157309,0.19,60075.0,60074.0,0.50196]
[1726604157509,0.00427372,60076.0,60074.0,0.50196]
[1726604157712,0.083205,60078.0,60075.0,0.49996]
[1726604158110,0.00425767,60078.0,60075.0,0.49996]
[1726604158310,0.00249683,60080.0,60075.0,0.49996]
[1726604159410,0.00430339,60080.0,60077.0,0.5508]
[1726604159706,0.3608,60089.0,60079.0,0.49996]
[1726604159910,0.19,60087.0,60081.0,0.49996]
[1726604160309,0.00442535,60086.0,60085.0,0.49996]
[1726604162004,0.00442535,60086.0,60085.0,0.50096]
[1726604162808,0.00442535,60086.0,60085.0,0.50196]
[1726604163312,0.00442535,60086.0,60085.0,1.09660136]
[1726604165302,0.00442535,60086.0,60085.0,1.17979536]
[1726604166816,0.19,60108.0,60085.0,2.05740136]
[1726604167009,0.0016,60103.0,60099.0,0.3608]
[1726604167204,0.9855,60111.0,60104.0,0.49996]
[1726604167405,0.36517841,60105.0,60104.0,0.49996]
[1726604168124,0.55517841,60105.0,60104.0,0.49996]
[1726604168413,0.55517841,60105.0,60099.0,0.3608]
[1726604168715,0.273173,60101.0,60099.0,0.3608]
[1726604168921,0.19,60101.0,60099.0,0.3608]
[1726604169412,0.3608,60100.0,60087.0,0.083191]
[1726604169615,0.08319,60089.0,60087.0,0.49996]
[1726604169813,0.3432,60088.0,60087.0,0.49996]
[1726604170318,0.19,60090.0,60087.0,1.09460136]
[1726604170512,0.19,60090.0,60089.0,0.49996]
[1726604171308,0.19,60095.0,60089.0,1.17779036]
[1726604171512,0.19,60095.0,60093.0,0.49996]
[1726604172513,0.19431823,60095.0,60093.0,0.49996]
[1726604173314,0.19431823,60095.0,60093.0,0.50096]
[1726604173821,0.19431823,60095.0,60094.0,0.49996]
[1726604175005,0.19431823,60095.0,60094.0,0.50096]
[1726604175410,0.19431823,60095.0,60094.0,0.50196]
[1726604176420,0.27749823,60095.0,60094.0,0.50196]
[1726604176615,0.083202,60079.0,60078.0,0.6879]
[1726604176917,0.083202,60079.0,60078.0,1.28254136]
[1726604176918,0.19,60079.0,60078.0,1.28254136]
[1726604177115,0.19,60079.0,60078.0,1.78250136]
[1726604177517,0.19,60082.0,60078.0,1.78250136]
[1726604177817,0.19,60082.0,60081.0,0.49996]
[1726604178411,0.19,60082.0,60081.0,1.09460136]
[1726604179018,0.19,60082.0,60081.0,1.09560136]
[1726604179334,0.19,60082.0,60081.0,0.50196]
[1726604179724,0.00689495,60083.0,60081.0,1.09660136]
[1726604179922,0.00689495,60083.0,60082.0,0.49996]
[1726604180220,0.00689495,60083.0,60082.0,1.77600136]
[1726604181225,0.00689495,60083.0,60082.0,1.77700136]
[1726604181226,0.02089495,60083.0,60082.0,1.77700136]
[1726604182029,0.02089495,60083.0,60082.0,1.09660136]
[1726604182824,0.38169495,60083.0,60082.0,0.50196]
[1726604183125,1.13189195,60083.0,60082.0,0.002]
[1726604184027,1.13189195,60083.0,60082.0,0.50196]
[1726604184531,0.02089495,60083.0,60082.0,0.50196]
[1726604184715,0.02089495,60083.0,60082.0,1.36979936]
[1726604184921,0.02089495,60083.0,60082.0,0.86983936]
[1726604185216,1e-08,60083.0,60082.0,1.68419936]
[1726604185727,1e-08,60083.0,60082.0,1.09660136]
[1726604185728,0.00426651,60083.0,60082.0,1.09660136]
[1726604186318,0.00426651,60083.0,60082.0,1.17979936]
[1726604187821,0.3608,60111.0,60082.0,0.51096389]
[1726604188032,0.19249647,60100.0,60099.0,0.49996]
[1726604188224,0.19685809,60100.0,60099.0,0.49996]
[1726604188432,0.19685809,60100.0,60099.0,1.00892389]
[1726604189118,0.19685809,60100.0,60099.0,0.3608]
[1726604189317,0.19685809,60100.0,60099.0,0.3618]
[1726604189522,0.28003109,60100.0,60099.0,0.3618]
[1726604189720,0.19685809,60100.0,60099.0,0.3618]
[1726604190736,0.19685809,60100.0,60099.0,0.3608]
[1726604190928,0.19685809,60100.0,60099.0,0.3628]
[1726604192131,0.19685809,60100.0,60099.0,0.50196]
[1726604193831,0.19685809,60100.0,60099.0,1.01092389]
[1726604194232,0.00685809,60100.0,60099.0,1.01092389]
[1726604194432,0.00685809,60100.0,60099.0,1.09409889]
[1726604194633,0.19685809,60100.0,60099.0,1.01092389]
[1726604196935,0.19436162,60100.0,60099.0,1.01092389]
[1726604197143,0.19,60100.0,60099.0,1.01092389]
[1726604197739,0.3231,60102.0,60099.0,1.01092389]
[1726604198036,0.3231,60102.0,60101.0,0.13916]
[1726604198537,0.542,60105.0,60101.0,0.13916]
[1726604198844,0.542,60105.0,60104.0,0.3608]
[1726604199329,0.00435756,60105.0,60104.0,1.09209089]
[1726604199525,0.19,60109.0,60104.0,1.09209089]
[1726604199830,0.19,60109.0,60108.0,0.13916]
[1726604200234,0.44106663,60109.0,60108.0,0.13916]
[1726604200634,0.44547163,60109.0,60108.0,0.13916]
[1726604200829,0.44547163,60109.0,60104.0,0.3618]
[1726604201039,0.25547163,60109.0,60108.0,0.002]
[1726604201338,0.25547163,60109.0,60108.0,0.14116]
[1726604202731,0.44547163,60109.0,60108.0,0.14016]
[1726604203432,0.44547163,60109.0,60108.0,0.14116]
[1726604203835,0.52863263,60109.0,60108.0,0.14116]
[1726604204031,0.083173,60100.0,60099.0,0.3608]
[1726604204232,0.273173,60100.0,60099.0,0.3608]
[1726604204426,0.43930266,60100.0,60099.0,0.3608]
[1726604204837,0.52247566,60100.0,60099.0,0.3608]
[1726604205038,0.083183,60093.0,60090.0,0.00249623]
[1726604205244,1.38243566,60100.0,60091.0,0.13916]
[1726604205245,0.083184,60092.0,60091.0,0.13916]
[1726604205439,0.273184,60092.0,60091.0,0.13916]
[1726604206241,0.19,60092.0,60091.0,0.13916]
[1726604206440,0.19,60096.0,60091.0,0.13916]
[1726604206646,0.19,60096.0,60092.0,0.13916]
[1726604206942,0.24951502,60095.0,60092.0,0.13916]
[1726604207142,0.59051502,60095.0,60092.0,0.13916]
[1726604207936,0.59051502,60095.0,60092.0,0.14016]
[1726604208332,0.59051502,60095.0,60092.0,0.13916]
[1726604208534,0.59051502,60095.0,60092.0,0.14016]
[1726604209355,0.59051502,60095.0,60092.0,0.14116]
[1726604209735,0.083182,60094.0,60092.0,0.14116]
[1726604211236,0.083183,60093.0,60092.0,0.14116]